Cogmind - Beta 16 @@@ ROGUE MODE // 2025.11.04 @ 13:25:24 Player: beans Result: Destroyed by S-10 Pest with Light Assault Rifle Performance ------------- Evolutions (0) 0 Regions Visited (2) 400 Robots Destroyed (16) 80 Value Destroyed (355) 355 Prototype IDs (0) 0 Alien Tech Used (0) 0 Bonus (0) 0 TOTAL SCORE: 835 Bonus ------- None Cogmind --------- Core Integrity 0/250 Matter 92/300 Energy 100/100 System Corruption 0% Temperature Cool (0) Movement Flying (40) Location -10/Mines Parts ------- > --- POWER (1) -------- (None) > --- PROPULSION (2) --- Flight Unit > --- UTILITY (2) ------ (None) > --- WEAPON (2) ------- Light Assault Rifle > --- INVENTORY (5) ---- (None) Peak State ------------ > --- POWER ------------ Improved Ion Engine > --- PROPULSION ------- Aluminum Leg Aluminum Leg > --- UTILITY ---------- Light Armor Plating > --- WEAPON ----------- Heavy Assault Rifle Light Cannon > --- INVENTORY -------- Ion Engine Light Assault Rifle Grenade Launcher Grenade Launcher [Rating: 8] Favorites ----------- Power Ion Engine Engine Ion Engine Propulsion Aluminum Leg Leg Aluminum Leg Flight Unit Flight Unit Utility Light Armor Plating Protection Light Armor Plating Weapon Grenade Launcher Ballistic Gun Light Assault Rifle Ballistic Cannon Light Cannon Launcher Grenade Launcher Build | -11 -10 -10 ------- Run | Yrd Mat Min Slots Evolved . | . . . Power . | . . . Propulsion . | . . . Utility . | . . . Weapon . | . . . Parts Attached 11 | 4 2 5 Power 2 | 1 . 1 Engine 2 | 1 . 1 Core . | . . . Reactor . | . . . Propulsion 3 | 2 . 1 Treads . | . . . Leg 2 | 2 . . Wheel . | . . . Hover . | . . . Flight 1 | . . 1 Utility 1 | . . 1 Device . | . . . Storage . | . . . Processor . | . . . Hackware . | . . . Protection 1 | . . 1 Artifact . | . . . Weapon 5 | 1 2 2 Energy Gun . | . . . Energy Cannon . | . . . Ballistic Gun 2 | 1 . 1 Ballistic Cannon 1 | . . 1 Launcher 2 | . 2 . Special Weapon . | . . . Impact Weapon . | . . . Slashing Weapon . | . . . Piercing Weapon . | . . . Special Melee Weapon . | . . . Unidentified Prototypes . | . . . Parts Lost 9 | . . 9 Power 2 | . . 2 Propulsion 2 | . . 2 Utility 1 | . . 1 Weapon 4 | . . 4 Highest Loss Streak 6 | . . 6 To Critical Strikes . | . . . Average Backups 1 | . 1 2 Power . | . . . Propulsion . | . . . Utility . | . . . Weapon 1 | . 1 1 Tool/Special . | . . . Unused Backups . | . . . Power . | . . . Propulsion . | . . . Utility . | . . . Weapon . | . . . Tool/Special . | . . . Average Slot Usage (%) 59 | . 65 52 Engine 13 | . 14 13 Leg 20 | . 28 12 Protection 2 | . . 4 Ballistic Gun 7 | . 5 9 Ballistic Cannon 4 | . . 9 Launcher 10 | . 17 1 Peak Build Rating 8 | 4 5 8 Average Rating 4 | 2 4 4 On Entrance 3 | . 4 5 Avg Prop Armor Cover (%) . | . . . Naked Turns . | . . . Heaviest Build 16 | 6 11 16 Greatest Support 20 | 20 20 20 Greatest Overweight (x) 3 | . . 3 Average Overweight (x) . | . . . Largest Inventory Capacity 5 | 5 5 5 Average Capacity 5 | 5 5 5 Most Carried 5 | 2 2 5 Average Carried 1 | . 1 2 Final Capacity 5 | 5 5 5 Final Carried 1 | . 1 . Class Distribution -------------------- 100% | Mutant Dominant Class ---------------- Mutant | -10/Materials Mutant | -10/Mines Resources | -11 -10 -10 ----------- Run | Yrd Mat Min Matter Collected 571 | 146 171 254 Remotely . | . . . Salvage Created 509 | . 244 265 Parts 21 | . 13 8 Haulers Intercepted 1 | . 1 . Recyclers Shooed . | . . . Parts Field Recycled . | . . . Retrieved Matter . | . . . Parts Self-Destructed . | . . . Prevented . | . . . Parts Restored . | . . . Kills | -11 -10 -10 ------- Run | Yrd Mat Min Combat Hostiles Destroyed 16 | . 5 11 Guns 4 | . . 4 Cannons 3 | . . 3 AOE 9 | . 5 4 Classes Destroyed 8 | . 5 3 Hauler 1 | . 1 . Recycler 4 | . 2 2 Operator 1 | . 1 . Watcher 2 | . 2 . Swarmer 2 | . . 2 Grunt 5 | . 5 . Sentry 1 | . . 1 Assembled 8 | . . 8 Best Kill Streak 10 | . 7 10 Combat Bots Only 6 | . 3 6 Max Kills in Single Turn 2 | . 2 2 Gunslinging . | . . . Exploded 2 | . 1 2 Melee . | . . . Uniques/NPCs Destroyed . | . . . Combat | -11 -10 -10 -------- Run | Yrd Mat Min Hostile Shots Fired 130 | . 18 112 Missed 44 | . 8 36 Hits 86 | . 10 76 Projectile 86 | . 10 76 Part Disruptions 1 | . . 1 Damage Taken 1110 | . 170 940 Core 256 | . 31 225 Absorbed by Shields . | . . . Core Remaining (%) 100 | 100 . . Volleys Fired 55 | . 14 41 Largest 2 | . 2 2 Hottest 60 | . 60 53 Shots Fired 82 | . 27 55 Gun 34 | . 2 32 Cannon 18 | . . 18 Launcher 30 | . 25 5 Special . | . . . Kinetic 52 | . 2 50 Thermal . | . . . Explosive 30 | . 25 5 Electromagnetic . | . . . Robot Hit Streak 7 | . 6 7 Robot Miss Streak 6 | . 2 6 Penetration Max . | . . . Secondary Targets . | . . . Shots Hit Robots 34 | . 10 24 Core Hits 39 | . 22 17 Critical Kills . | . . . Critical Parts Destroyed . | . . . Critical Strikes . | . . . Melee Attacks . | . . . Impact . | . . . Slashing . | . . . Piercing . | . . . Sneak Attacks . | . . . Combat Hostiles . | . . . Follow-up Attacks . | . . . Damage Inflicted 1482 | . 964 518 Guns 183 | . 10 173 Cannons 163 | . . 163 Explosions 1136 | . 954 182 Melee . | . . . Ramming . | . . . Kinetic 346 | . 10 336 Thermal . | . . . Explosive 1136 | . 954 182 Electromagnetic . | . . . Impact . | . . . Slashing . | . . . Piercing . | . . . Highest Corruption . | . . . Average Corruption . | . . . Corruption Purged . | . . . Corruption Blocked . | . . . Overload Shots . | . . . Overflow Damage 39 | . 15 24 Projectiles . | . . . Explosions 39 | . 15 24 Melee . | . . . Knockbacks 2 | . . 2 Impact . | . . . Kinetic 2 | . . 2 Secondary . | . . . Self-Inflicted Damage 115 | . 32 83 Shots 4 | . 1 3 Rammed . | . . . Targets Rammed . | . . . Kicked . | . . . Crushed . | . . . Highest Temperature 64 | . 48 64 Average Temperature 28 | . 29 27 Received Heat Transfer 215 | . 81 134 Siege Activations . | . . . Martial Activations . | . . . Shielding Activations . | . . . Robots Disrupted . | . . . Combat Hostiles . | . . . Robots Corrupted . | . . . Combat Hostiles . | . . . Parts Fried . | . . . Impact Corruptions . | . . . Robots Melted . | . . . Combat Hostiles . | . . . Parts Melted . | . . . Heat Transferred . | . . . Parts Sabotaged . | . . . Parts Stolen . | . . . Parts Stripped . | . . . Power Chain Reactions . | . . . Alert | -11 -10 -10 ------- Run | Yrd Mat Min Maximum Alert Level 1 | . 1 . Low Security (%) 89 | 100 77 100 Level 1 10 | . 22 . Level 2 . | . . . Level 3 . | . . . Level 4 . | . . . Level 5 . | . . . High Security . | . . . Max Security . | . . . Peak Influence 223 | . 223 73 Initial 63 | . . 63 Average 59 | . 105 24 Influence Increases 383 | . 273 110 Destroy 0b10 Robot/C 160 | . 100 60 Destroy 0b10 Robot/NC 40 | . 30 10 Destroy Leader 36 | . 26 10 Disable Machine 30 | . 30 . Destroy Structure 102 | . 72 30 Lose Combat Pursuer 15 | . 15 . Influence Decreases 373 | . 110 263 Entered New Map 100 | . . 100 Time Decay 193 | . 110 83 Lost Part 80 | . . 80 Squads Dispatched . | . . . Investigation . | . . . Extermination . | . . . Reinforcement . | . . . Assault . | . . . Garrison . | . . . Intercept . | . . . Searches Triggered . | . . . Construction Impeded . | . . . Haulers Reinforced . | . . . Active Scanning Responses . | . . . Cargo Convoy Interrupts . | . . . Stealth | -11 -10 -10 --------- Run | Yrd Mat Min Distress Signals 1 | . 1 . Communications Jammed . | . . . Distress Signals . | . . . Times Spotted 25 | . 12 13 Peak Tracking Total 7 | . 4 7 Tactical Retreats 1 | . 1 . Traps | -11 -10 -10 ------- Run | Yrd Mat Min Traps Triggered . | . . . Indirectly . | . . . Trap Hack Attempts . | . . . Triggered . | . . . Disarmed . | . . . Reprogrammed . | . . . Reused . | . . . Traps Extracted . | . . . Installed 2 | . . 2 Triggered . | . . . Most Traps Carried 2 | . . 2 Machines | -11 -10 -10 ---------- Run | Yrd Mat Min Machines Disabled 3 | . 3 . Max in Single Turn 1 | . 1 . Machines Repaired . | . . . Machines Dismantled . | . . . Machines Sabotaged . | . . . Overloaded Fab Kills . | . . . Hacking | -11 -10 -10 --------- Run | Yrd Mat Min Machines Accessed 1 | . 1 . Terminals 1 | . 1 . Fabricators . | . . . Repair Stations . | . . . Recycling Units . | . . . Scanalyzers . | . . . Garrison Access . | . . . Total Hacks 1 | . 1 . Successful . | . . . Failed 1 | . 1 . Catastrophic 1 | . 1 . Database Lockouts . | . . . Manual 1 | . 1 . Terminals 1 | . 1 . Fabricators . | . . . Repair Stations . | . . . Recycling Units . | . . . Scanalyzers . | . . . Garrison Access . | . . . Terminal Hacks . | . . . Fabricator Hacks . | . . . Repair Station Hacks . | . . . Recycling Unit Hacks . | . . . Scanalyzer . | . . . Garrison Access Hacks . | . . . Unauthorized Hacks . | . . . Terminals . | . . . Fabricators . | . . . Repair Stations . | . . . Recycling Units . | . . . Scanalyzers . | . . . Garrison Access . | . . . Data Cores Recovered . | . . . Used . | . . . Hacking Detections 1 | . 1 . Full Trace Events . | . . . Feedback Events . | . . . Feedback Blocked . | . . . Robot Schematics Acquired . | . . . Robots Built . | . . . Authchips . | . . . Time . | . . . Total Robot Build Rating . | . . . Part Schematics Acquired . | . . . Parts Built . | . . . Authchips . | . . . Time . | . . . Total Part Build Rating . | . . . Part Studies Acquired . | . . . Parts Repaired . | . . . Time . | . . . Parts Recycled . | . . . Recycled Matter . | . . . Retrieved Matter . | . . . Retrieved Components . | . . . Parts Scanalyzed . | . . . Part Schematics Acquired . | . . . Parts Damaged . | . . . Bothacking | -11 -10 -10 ------------ Run | Yrd Mat Min Used RIF Installer . | . . . Robots Hacked . | . . . Non-combat . | . . . Combat . | . . . Robot Hacks Applied . | . . . Relay Couplers Released . | . . . Fabnet Peak Effective % . | . . . Robots Rewired . | . . . Allies Hacked . | . . . Hacks Repelled . | . . . Allies | -11 -10 -10 -------- Run | Yrd Mat Min Total Allies . | . . . Largest Group . | . . . Highest-Rated Group . | . . . Highest-Rated Ally . | . . . Total Orders . | . . . Ally Attacks . | . . . Total Damage . | . . . Kills . | . . . Allies Corrupted . | . . . Allies Melted . | . . . Intel | -11 -10 -10 ------- Run | Yrd Mat Min Active Infowar (turns) . | . . . Robot Analysis Total . | . . . Derelict Logs Recovered . | . . . Drone Launches . | . . . Drone Recoveries . | . . . Exploration | -11 -10 -10 ------------- Run | Yrd Mat Min Turns Passed 729 | 79 343 307 Spaces Moved 414 | 68 249 97 Core 37 | 14 . 23 Treads . | . . . Legs 376 | 54 249 73 Wheels . | . . . Hover . | . . . Flight 1 | . . 1 Fastest Speed 40 | 50 120 40 Average Speed 121 | 105 120 135 Slowest Speed 200 | 120 120 200 Overloaded Moves . | . . . Propulsion Burnouts . | . . . Robots Hopped . | . . . Potential Cave-ins . | . . . Cave-ins Triggered . | . . . Exploration Rate (%) 31 | 5 62 28 Regions Visited 2 Branch Regions 1 Pre-discovered Areas . | . . . Known Exits Taken . | . . . Unknown Exits Taken 2 | 1 1 . Scrap Searched 1 | . . 1 Spaces Dug 37 | . 37 . Terrain Destroyed 111 | . 76 35 Melee . | . . . Projectile . | . . . AOE 111 | . 76 35 Terrain Rammed . | . . . Walls Destroyed . | . . . Machines Disabled . | . . . Actions | -11 -10 -10 --------- Run | Yrd Mat Min Total 562 | 75 266 221 Wait 57 | . . 57 Move 412 | 67 248 97 Hop . | . . . Pick Up 13 | 4 2 7 Fast Attach . | . . . Attach 13 | 4 1 8 Detach 2 | . . 2 Swap 6 | . 1 5 Drop 2 | . . 2 Fire 55 | . 14 41 Melee . | . . . Ram . | . . . Kick . | . . . Crush . | . . . Escape Stasis . | . . . Rewire . | . . . Trap 2 | . . 2 Miscellaneous . | . . . Route ------- -11/Scrapyard -10/Materials (discovered 2 exits: [*Mat] / [*Min]) -10/Mines History --------- Turn | Location | Event 8 | -11/Scrapyard | Discovered new exit (range 15) 80 | -11/Scrapyard | Entered Materials 225 | -10/Materials | Discovered new exit (range 15) 258 | -10/Materials | Discovered new exit (range 12) 305 | -10/Materials | Build established: Mutant 423 | -10/Materials | Entered Mines 519 | -10/Mines | Assembled infested the area 524 | -10/Mines | Assisted by a Guerilla fighting off Assembled 561 | -10/Mines | Core integrity fell below 50% 600 | -10/Mines | Found a hidden stash of uninstalled traps 619 | -10/Mines | Lost 6 parts (2n1u3w) 711 | -10/Mines | Core integrity fell below 20% 730 | -10/Mines | Destroyed by S-10 Pest with Light Assault Rifle Last Messages --------------- R-06 Scavenger collects Seismic Detector. R-06 Scavenger collects Tractor Beam. Hvy. Assault Rifle destroyed. as-69983 destroyed. The unstable cave ceiling collapses. as-36332 destroyed. A stash of uninstalled traps is collected here! Acquired EMP Trap. Dropped EMP Trap. Installed EMP Trap. Dropped EMP Trap. Installed EMP Trap. S-10 Pest destroyed. Lgt. Cannon destroyed. Imp. Ion Engine destroyed. Acquired 14 matter. Acquired Flight Unit. S-10 Pest destroyed. Ion Engine destroyed. K-01 Serf collects debris. Map ----- +----------------------------------------------------+ | ??# #??????????????? | | ??# #??????????????? | | ??# #??????????????? | | ??# #??????????????? | | ??# #??????????????? | | ??# #??????????????? | | ??# ####???????????? | | ??# ## #??????????? | | ??# # #####?????? | | ??# #? ##????? | | ??# #?? ##???? | | ??### ############?? ##### | | ????# #?????????????? # | | ????# #########??????? | | ????# ! / #???????# | | ????######### #????#### | | ??????????### ###### #??? | | ??????????# ^ = & & #??? | | ??????##### ^ %& % #??? | | ??????# #### %## | | ??????# #??## ## % | | ??????# ######???#### # | | ??????# #???????????## % # % | | ??##### ####?????????## ## | | ??# % #??????????## ? | | ??# k @ #???????????# #####?# | | ??# """ #????????????% #?????? | | ??# """% #????????????% %?????? | | ??# """[s #???????????? =?????? | | ??# #???????????? "????? | | ??# """ #????????????# ????? | | ??# """ #?????????????###????? | | ??#???"" #????????????????????? | | ??????? #????????????????????? | | ???????#####????????????????????? | | ????????????????????????????????? | | ????????????????????????????????? | | ????????????????????????????????? | | ????????????????????????????????? | | ????????????????????????????????? | | ????????????????????????????????? | | ????????????????????????????????? | | ????????????????????????????????? | | ????????????????????????????????? | | ????????????????????????????????? | | ????????????????????????????????? | | ????????????????????????????????? | | ????????????????????????????????? | | ????????????????????????????????? | | ????????????????????????????????? | +----------------------------------------------------+ Best States ------------- Heat Dissipation 25 Energy Generation 12 Energy Capacity 265 Matter Stores 257 Matter Capacity 300 Sight Range 16 Terrain Scan Density 10 Armor Coverage 150 Evasion (%) 55 Item Schematics ----------------- None Robot Schematics ------------------ None Fabricated ------------ Nothing Repaired ---------- Nothing Studied --------- None Alien Tech Used ----------------- None Achievements -------------- None Challenges ------------ None Game ------ Seed BiometalDisposableDatajack Manual? 0 Play Time 00:07:48 Cumulative 204.9 hours Start 2025.11.04 @ 13:17:30 End 2025.11.04 @ 13:25:24 Sessions 2 Manual Loads 0 Difficulty Rogue Special Mode None Game No. 599 Rogue 598 Adventurer 1 Explorer 0 Win Type - Total 0 Types 0/0/0/0/0/0/0/0/0/0 Lore% 64 Gallery% 61 Achievement% 36 Wizard Run 0 Options --------- Layout 1 ASCII 0 Keyboard 0 Movement Mouse Keybinds 0 Fullscreen 1 Font 24/Smallcaps Map View 50x35 Zoom Use 0% Tactical HUD 0 Map Filters NONE Filters NONE Steam 1 RUN: 74d943a1-f0af-4adf-ada3-fbca8b3ad4ac